Departmental Area,Entity,Payment Date,Expense Type,Expense Area,Supplier Name,Payment Reference,Invoice Distribution Amount,Description,Supplier Type,Expenditure Type
UK Statistics Authority,Office for National Statistics,03-Feb-20,Exp - Purchase Of Goods/Services - IT Contractual Services,Digital Publishing,E Synergy Solutions,172647,"10,200.00", Information Management Services,SME,Programme Expenditure
UK Statistics Authority,Office for National Statistics,03-Feb-20,Exp - Purchase Of Goods/Services - IT Contractual Services,Data Science Campus,E Synergy Solutions,172647,"19,260.00", Information Management Services,SME,Programme Expenditure
UK Statistics Authority,Office for National Statistics,03-Feb-20,Exp - Short-Term Contract & Agency Staff - Full Cost,Business Change Support,Concept Information Technology Ltd T/A Concept Resourcing,172649,"3,958.70", Information Management Services,Large,Programme Expenditure
UK Statistics Authority,Office for National Statistics,03-Feb-20,Exp - Short-Term Contract & Agency Staff - Full Cost,Business Change Support,Concept Information Technology Ltd T/A Concept Resourcing,172649,"4,440.17", Information Management Services,Large,Programme Expenditure
UK Statistics Authority,Office for National Statistics,03-Feb-20,Exp - Short-Term Contract & Agency Staff - Full Cost,Business Change Support,Concept Information Technology Ltd T/A Concept Resourcing,172649,"6,887.88", Information Management Services,Large,Programme Expenditure
UK Statistics Authority,Office for National Statistics,03-Feb-20,Exp - Short-Term Contract & Agency Staff - Full Cost,International Trade And Transactions,Concept Information Technology Ltd T/A Concept Resourcing,172649,"10,518.64", Information Management Services,Large,Programme Expenditure
UK Statistics Authority,Office for National Statistics,03-Feb-20,Exp - Short-Term Contract & Agency Staff - Full Cost,International Trade And Transactions,Concept Information Technology Ltd T/A Concept Resourcing,172649,"4,899.98", Information Management Services,Large,Programme Expenditure
UK Statistics Authority,Office for National Statistics,03-Feb-20,Exp - Purchase Of Goods/Services - Contractors,International Trade And Transactions,Concept Information Technology Ltd T/A Concept Resourcing,172649,"3,762.64", Information Management Services,Large,Programme Expenditure
UK Statistics Authority,Office for National Statistics,03-Feb-20,Exp - Short-Term Contract & Agency Staff - Full Cost,Productivity Research And Professional Development,Concept Information Technology Ltd T/A Concept Resourcing,172649,"8,283.04", Information Management Services,Large,Programme Expenditure
UK Statistics Authority,Office for National Statistics,03-Feb-20,Exp - Short-Term Contract & Agency Staff - Full Cost,Analysis Microdata And Engagement,Concept Information Technology Ltd T/A Concept Resourcing,172649,"3,577.55", Information Management Services,Large,Programme Expenditure
UK Statistics Authority,Office for National Statistics,03-Feb-20,Exp - Short-Term Contract & Agency Staff - Full Cost,Business Architecture Transformation And Statistical Strategy,Concept Information Technology Ltd T/A Concept Resourcing,172649,"3,909.49", Information Management Services,Large,Programme Expenditure
UK Statistics Authority,Office for National Statistics,03-Feb-20,Exp - Short-Term Contract & Agency Staff - Full Cost,PBS Leadership,Concept Information Technology Ltd T/A Concept Resourcing,172649,"1,458.25", Information Management Services,Large,Programme Expenditure
UK Statistics Authority,Office for National Statistics,03-Feb-20,Exp - Purchase Of Goods/Services - Contractors,Office Of Chief Data And Information,Concept Information Technology Ltd T/A Concept Resourcing,172649,"5,088.00", Information Management Services,Large,Programme Expenditure
UK Statistics Authority,Office for National Statistics,03-Feb-20,Exp - Purchase Of Goods/Services - IT Contractual Services,Office Of Chief Data And Information,Concept Information Technology Ltd T/A Concept Resourcing,172649,"3,180.00", Information Management Services,Large,Programme Expenditure
UK Statistics Authority,Office for National Statistics,03-Feb-20,Exp - Short-Term Contract & Agency Staff - Full Cost,Prices Division,Concept Information Technology Ltd T/A Concept Resourcing,172649,"3,958.70", Information Management Services,Large,Programme Expenditure
UK Statistics Authority,Office for National Statistics,03-Feb-20,"ICT Outsourcing, Maintenance And Support",IT Operations,Computacenter (Uk) Limited,172666,"190,911.28", Software Licenses,Large,Programme Expenditure
UK Statistics Authority,Office for National Statistics,04-Feb-20,Exp - Permanent UK Staff - PRP Voucher Payments,ONS Corporate Funds,Park Retail Ltd,172690,"26,776.40", Performance Reward Vouchers,Large,Programme Expenditure
UK Statistics Authority,Office for National Statistics,04-Feb-20,Exp - Purchase Of Goods/Services - Incentive Payments,Survey Management,Park Retail Ltd,172690,"18,672.13", Survey Incentive Vouchers,Large,Programme Expenditure
UK Statistics Authority,Office for National Statistics,04-Feb-20,Exp - Purchase Of Goods/Services - Incentive Payments,Survey Management,Park Retail Ltd,172690,"1,493.41", Survey Incentive Vouchers,Large,Programme Expenditure
UK Statistics Authority,Office for National Statistics,04-Feb-20,Exp - Purchase Of Goods/Services - Incentive Payments,Survey Management,Park Retail Ltd,172690,"5,191.62", Survey Incentive Vouchers,Large,Programme Expenditure
UK Statistics Authority,Office for National Statistics,04-Feb-20,Exp - Purchase Of Goods/Services - Incentive Payments,Survey Management,Park Retail Ltd,172690,"4,186.43", Survey Incentive Vouchers,Large,Programme Expenditure
UK Statistics Authority,Office for National Statistics,04-Feb-20,Exp - Purchase Of Goods/Services - Incentive Payments,Survey Management,Park Retail Ltd,172690,"3,181.25", Survey Incentive Vouchers,Large,Programme Expenditure
UK Statistics Authority,Office for National Statistics,04-Feb-20,"ICT Outsourcing, Maintenance And Support",Security Operations,SCC,172692,"36,988.00", ERP Licenses,Large,Programme Expenditure
UK Statistics Authority,Office for National Statistics,04-Feb-20,Other Goods And Services,Beyond 2021 Research And Design,The Sensible Code Company,172695,"90,000.00", Software Licenses,SME,Programme Expenditure
UK Statistics Authority,Office for National Statistics,04-Feb-20,Exp - Purchase Of Goods/Services - Contractors,International Trade And Transactions,Parity Resources Limited,172700,"7,689.60", Information Management Services,Large,Programme Expenditure
UK Statistics Authority,Office for National Statistics,04-Feb-20,Exp - Purchase Of Goods/Services - Contractors,International Trade And Transactions,Parity Resources Limited,172700,"7,854.00", Information Management Services,Large,Programme Expenditure
UK Statistics Authority,Office for National Statistics,04-Feb-20,Exp - Short-Term Contract & Agency Staff - Full Cost,Productivity Research And Professional Development,Parity Resources Limited,172700,966.14, Information Management Services,Large,Programme Expenditure
UK Statistics Authority,Office for National Statistics,04-Feb-20,Exp - Short-Term Contract & Agency Staff - Full Cost,Business Architecture Transformation And Statistical Strategy,Parity Resources Limited,172700,287.89, Information Management Services,Large,Programme Expenditure
UK Statistics Authority,Office for National Statistics,04-Feb-20,Exp - Short-Term Contract & Agency Staff - Full Cost,ONS And GSS Careers,Parity Resources Limited,172700,"6,354.32", Information Management Services,Large,Programme Expenditure
UK Statistics Authority,Office for National Statistics,04-Feb-20,Exp - Purchase Of Goods/Services - Contractors,IT Applications,Parity Resources Limited,172700,"2,307.00", Information Management Services,Large,Programme Expenditure
UK Statistics Authority,Office for National Statistics,04-Feb-20,Exp - Short-Term Contract & Agency Staff - Full Cost,Office Of Chief Data And Information,Parity Resources Limited,172700,"1,190.16", Information Management Services,Large,Programme Expenditure
UK Statistics Authority,Office for National Statistics,04-Feb-20,Exp - Short-Term Contract & Agency Staff - Full Cost,Digital Delivery,Parity Resources Limited,172700,626.04, Information Management Services,Large,Programme Expenditure
UK Statistics Authority,Office for National Statistics,04-Feb-20,Exp - Short-Term Contract & Agency Staff - Full Cost,Interviewer Management TU,Parity Resources Limited,172700,383.14, Information Management Services,Large,Programme Expenditure
UK Statistics Authority,Office for National Statistics,04-Feb-20,Other Goods And Services,Interviewer Management TU,Parity Resources Limited,172700,356.40, Census Information Management Services,Large,Programme Expenditure
UK Statistics Authority,Office for National Statistics,04-Feb-20,Exp - Purchase Of Goods/Services - Contractors,Social Survey Transformation Titchfield,Parity Resources Limited,172700,"1,763.10", Information Management Services,Large,Programme Expenditure
UK Statistics Authority,Office for National Statistics,04-Feb-20,Exp - Short-Term Contract & Agency Staff - Full Cost,Labour Market,Parity Resources Limited,172700,719.72, Information Management Services,Large,Programme Expenditure
UK Statistics Authority,Office for National Statistics,04-Feb-20,Exp - Short-Term Contract & Agency Staff - Full Cost,Labour Market,Parity Resources Limited,172700,427.94, Information Management Services,Large,Programme Expenditure
UK Statistics Authority,Office for National Statistics,04-Feb-20,Capital Major Works >25K,Property Christchurch,Paramount Office Interiors Ltd,172706,"116,964.37", Major Work Undertaken at Christchurch,SME,Programme Expenditure
UK Statistics Authority,Office for National Statistics,04-Feb-20,Travel And Subsistence,Learning And Capability,Insights Learning And Development Limited,172708,"26,514.00", Training,SME,Programme Expenditure
UK Statistics Authority,Office for National Statistics,05-Feb-20,Travel And Subsistence,Business Architecture,Parity Resources Limited,172721,34.27, Information Management Services,Large,Programme Expenditure
UK Statistics Authority,Office for National Statistics,05-Feb-20,Exp - Purchase Of Goods/Services - Contractors,Testing,Parity Resources Limited,172721,"11,053.80", Information Management Services,Large,Programme Expenditure
UK Statistics Authority,Office for National Statistics,05-Feb-20,Exp - Purchase Of Goods/Services - Contractors,International Trade And Transactions,Parity Resources Limited,172721,"10,564.22", Information Management Services,Large,Programme Expenditure
UK Statistics Authority,Office for National Statistics,05-Feb-20,Exp - Purchase Of Goods/Services - Contractors,International Trade And Transactions,Parity Resources Limited,172721,"1,966.92", Information Management Services,Large,Programme Expenditure
UK Statistics Authority,Office for National Statistics,05-Feb-20,Exp - Short-Term Contract & Agency Staff - Full Cost,Business Architecture Transformation And Statistical Strategy,Parity Resources Limited,172721,"1,439.44", Information Management Services,Large,Programme Expenditure
UK Statistics Authority,Office for National Statistics,05-Feb-20,Exp - Short-Term Contract & Agency Staff - Full Cost,Business Architecture Transformation And Statistical Strategy,Parity Resources Limited,172721,398.70, Information Management Services,Large,Programme Expenditure
UK Statistics Authority,Office for National Statistics,05-Feb-20,Exp - Short-Term Contract & Agency Staff - Full Cost,Ask Business Services,Parity Resources Limited,172721,863.66, Information Management Services,Large,Programme Expenditure
UK Statistics Authority,Office for National Statistics,05-Feb-20,Exp - Short-Term Contract & Agency Staff - Full Cost,Recruitment ,Parity Resources Limited,172721,787.81, Information Management Services,Large,Programme Expenditure
UK Statistics Authority,Office for National Statistics,05-Feb-20,Exp - Short-Term Contract & Agency Staff - Full Cost,Recruitment ,Parity Resources Limited,172721,"8,597.43", Information Management Services,Large,Programme Expenditure
UK Statistics Authority,Office for National Statistics,05-Feb-20,Surveys,Social Surveys Division,Nisra,172726,"115,004.88", Statistical Services,Large,Programme Expenditure
UK Statistics Authority,Office for National Statistics,06-Feb-20,Travel And Subsistence,CWT Trainline,Corporate Travel Management ,173109,"78,114.96", Corporate Travel Management ,SME,Programme Expenditure
UK Statistics Authority,Office for National Statistics,06-Feb-20,Exp - Purchase Of Goods And Services Consultants,Consultancy Management,Deloitte,173117,"76,440.00", Information Management Services,Large,Programme Expenditure
UK Statistics Authority,Office for National Statistics,06-Feb-20,"ICT Outsourcing, Maintenance And Support",IT Operations,CTS (Cloud Technology Solutions Ltd),173125,"50,846.35", Census Google Cloud Services,Large,Programme Expenditure
UK Statistics Authority,Office for National Statistics,06-Feb-20,Training & Development,Stakeholder Engagement And Comms,People For Research,173126,"15,103.80", Recruitment Services,Large,Programme Expenditure
UK Statistics Authority,Office for National Statistics,06-Feb-20,Other Professional Services,Social Survey Transformation Newport,People For Research,173126,"10,578.50", Recruitment Services,Large,Programme Expenditure
UK Statistics Authority,Office for National Statistics,07-Feb-20,Exp - Purchase Of Goods/Services - Incentive Payments,Survey Management,Park Retail Ltd,173429,"19,663.93", Survey Incentive Vouchers,Large,Programme Expenditure
UK Statistics Authority,Office for National Statistics,07-Feb-20,Exp - Purchase Of Goods/Services - Incentive Payments,Survey Management,Park Retail Ltd,173429,"5,909.60", Survey Incentive Vouchers,Large,Programme Expenditure
UK Statistics Authority,Office for National Statistics,07-Feb-20,Exp - Purchase Of Goods/Services - Incentive Payments,Survey Management,Park Retail Ltd,173429,"2,869.60", Survey Incentive Vouchers,Large,Programme Expenditure
UK Statistics Authority,Office for National Statistics,07-Feb-20,Exp - Purchase Of Goods/Services - Contractors,Testing,LA International,173433,"13,975.69", Information Management Services,SME,Programme Expenditure
UK Statistics Authority,Office for National Statistics,07-Feb-20,Exp - Purchase Of Goods/Services - Contractors,Programme Delivery,LA International,173433,"10,100.70", Information Management Services,SME,Programme Expenditure
UK Statistics Authority,Office for National Statistics,07-Feb-20,Exp - Purchase Of Goods/Services - Contractors,International Trade And Transactions,LA International,173433,"7,689.24", Information Management Services,SME,Programme Expenditure
UK Statistics Authority,Office for National Statistics,07-Feb-20,Exp - Purchase Of Goods/Services - Contractors,Sustainability And Inequalities,LA International,173433,"4,419.66", Information Management Services,SME,Programme Expenditure
UK Statistics Authority,Office for National Statistics,07-Feb-20,Exp - Purchase Of Goods/Services - Contractors,Security Advisory,LA International,173433,"11,533.86", Information Management Services,SME,Programme Expenditure
UK Statistics Authority,Office for National Statistics,07-Feb-20,Exp - Purchase Of Goods/Services - Contractors,Data Architecture,LA International,173433,"3,524.22", Information Management Services,SME,Programme Expenditure
UK Statistics Authority,Office for National Statistics,07-Feb-20,Exp - Purchase Of Goods/Services - Contractors,Tech Delivery SRS,LA International,173433,"7,176.60", Information Management Services,SME,Programme Expenditure
UK Statistics Authority,Office for National Statistics,07-Feb-20,Exp - Purchase Of Goods/Services - Contractors,Tech Delivery Data As A Platform,LA International,173433,"3,203.88", Information Management Services,SME,Programme Expenditure
UK Statistics Authority,Office for National Statistics,07-Feb-20,Exp - Purchase Of Goods/Services - Contractors,IT Applications,LA International,173433,"15,263.46", Information Management Services,SME,Programme Expenditure
UK Statistics Authority,Office for National Statistics,07-Feb-20,Exp - Purchase Of Goods/Services - Contractors,Digital Delivery,LA International,173433,"3,844.62", Information Management Services,SME,Programme Expenditure
UK Statistics Authority,Office for National Statistics,07-Feb-20,Exp - Purchase Of Goods/Services - Contractors,Digital Delivery,LA International,173433,"10,893.18", Information Management Services,SME,Programme Expenditure
UK Statistics Authority,Office for National Statistics,07-Feb-20,Other Goods And Services,Beyond 2021 Research And Design,The Sensible Code Company,173440,"84,720.22", Show and Tell Services,SME,Programme Expenditure
UK Statistics Authority,Office for National Statistics,10-Feb-20,Telecoms,IT Operations,Crown Hosting Data Centres Limited,173447,"2,580.00", Crown Hosted Data Centre,SME,Programme Expenditure
UK Statistics Authority,Office for National Statistics,10-Feb-20,IT Management And Change,IT Operations,Crown Hosting Data Centres Limited,173447,"60,524.61", Crown Hosted Data Centre,SME,Programme Expenditure
UK Statistics Authority,Office for National Statistics,10-Feb-20,FM Contract Payments,Mitie Payments,Vinci Construction Uk Limited,173448,"114,482.66", Facility Management Services,Large,Programme Expenditure
UK Statistics Authority,Office for National Statistics,10-Feb-20,"ICT Outsourcing, Maintenance And Support",Digital Delivery,XMA Limited,173453,"26,913.21", Census Field Officers Devices and Licenses,Large,Programme Expenditure
UK Statistics Authority,Office for National Statistics,10-Feb-20,IT Management And Change,Digital Delivery,XMA Limited,173453,151.73, Census Field Officers Devices and Licenses,Large,Programme Expenditure
UK Statistics Authority,Office for National Statistics,13-Feb-20,Travel And Subsistence,CWT Trainline,Corporate Travel Management ,174180,"61,910.45", Corporate Travel Management ,SME,Programme Expenditure
UK Statistics Authority,Office for National Statistics,13-Feb-20,Stationery,Lodgecard,Royal Bank Of Scotland,174185,"12,208.83", Multiple Procurement Card Stationery Purchases  ,Large,Programme Expenditure
UK Statistics Authority,Office for National Statistics,13-Feb-20,Other Goods And Services,GPC,Royal Bank Of Scotland,174185,"91,901.93", Multiple Procurement Card Purchases  ,Large,Programme Expenditure
UK Statistics Authority,Office for National Statistics,13-Feb-20,Travel And Subsistence,Car Hire,Royal Bank Of Scotland,174185,"59,938.69", Multiple Procurement Card Car Hire Services   ,Large,Programme Expenditure
UK Statistics Authority,Office for National Statistics,13-Feb-20,Other Goods And Services,Security Operations,SCC,174195,"30,900.00", ERP Licenses,Large,Programme Expenditure
UK Statistics Authority,Office for National Statistics,13-Feb-20,Exp - Purchase Of Goods/Services - Contractor Travel,Digital Delivery,SCC,174195,"1,393.27", Information Management Services,Large,Programme Expenditure
UK Statistics Authority,Office for National Statistics,17-Feb-20,Major Works Over 25K,Property Newport,Vinci Construction UK Limited,174511,"134,062.66", Major Works Newport,Large,Programme Expenditure
UK Statistics Authority,Office for National Statistics,17-Feb-20,FM Contract Payments,Mitie Payments,Vinci Construction UK Limited,174511,"269,813.29", Facility Management Services,Large,Programme Expenditure
UK Statistics Authority,Office for National Statistics,17-Feb-20,Telecoms,IT Operations,BT Global Services,174512,"49,780.39", Cloud Hosting Services,Large,Programme Expenditure
UK Statistics Authority,Office for National Statistics,17-Feb-20,Exp - Purchase Of Goods/Services - Contractors,Digital Delivery,Certes Computing Ltd,174513,"37,467.90", Information Management Services,SME,Programme Expenditure
UK Statistics Authority,Office for National Statistics,17-Feb-20,Exp - Purchase Of Goods/Services - Contractors,Digital Delivery,Certes Computing Ltd,174513,"9,231.34", Information Management Services,SME,Programme Expenditure
UK Statistics Authority,Office for National Statistics,17-Feb-20,Exp - Purchase Of Goods/Services - Contractors,Business Architecture,LA Fosse Associates Limited,174518,"22,950.00", Information Management Services,SME,Programme Expenditure
UK Statistics Authority,Office for National Statistics,17-Feb-20,Exp - Purchase Of Goods/Services - Contractors,Business Architecture,LA Fosse Associates Limited,174518,"12,420.00", Information Management Services,SME,Programme Expenditure
UK Statistics Authority,Office for National Statistics,17-Feb-20,Surveys,Crime Statistics,Kantar UK Ltd,174525,"480,430.56", Statistical Services,Large,Programme Expenditure
UK Statistics Authority,Office for National Statistics,19-Feb-20,Travel And Subsistence,CWT Trainline,Corporate Travel Management ,174824,"65,723.43", Corporate Travel Management ,SME,Programme Expenditure
UK Statistics Authority,Office for National Statistics,19-Feb-20,Exp - Purchase Of Goods/Services - Contractors,Testing,Parity Resources Limited,174830,"14,738.40", Information Management Services,Large,Programme Expenditure
UK Statistics Authority,Office for National Statistics,19-Feb-20,Exp - Purchase Of Goods/Services - Contractors,Analysis Microdata And Engagement,Parity Resources Limited,174830,640.80, Information Management Services,Large,Programme Expenditure
UK Statistics Authority,Office for National Statistics,19-Feb-20,Exp - Short-Term Contract & Agency Staff - Full Cost,Recruitment ,Parity Resources Limited,174830,983.46, Information Management Services,Large,Programme Expenditure
UK Statistics Authority,Office for National Statistics,19-Feb-20,Exp - Short-Term Contract & Agency Staff - Full Cost,ONS And GSS Careers,Parity Resources Limited,174830,"1,389.80", Information Management Services,Large,Programme Expenditure
UK Statistics Authority,Office for National Statistics,19-Feb-20,Exp - Purchase Of Goods/Services - Contractors,IT Applications,Parity Resources Limited,174830,"9,612.12", Information Management Services,Large,Programme Expenditure
UK Statistics Authority,Office for National Statistics,19-Feb-20,Exp - Short-Term Contract & Agency Staff - Full Cost,Office Of Chief Data And Information,Parity Resources Limited,174830,772.56, Information Management Services,Large,Programme Expenditure
UK Statistics Authority,Office for National Statistics,19-Feb-20,Exp - Short-Term Contract & Agency Staff - Full Cost,Digital Delivery,Parity Resources Limited,174830,626.04, Information Management Services,Large,Programme Expenditure
UK Statistics Authority,Office for National Statistics,19-Feb-20,Exp - Purchase Of Goods/Services - Contractors,Digital Delivery,Parity Resources Limited,174830,"13,636.22", Information Management Services,Large,Programme Expenditure
UK Statistics Authority,Office for National Statistics,19-Feb-20,Exp - Purchase Of Goods/Services - Contractors,Digital Delivery,Parity Resources Limited,174830,"10,621.26", Information Management Services,Large,Programme Expenditure
UK Statistics Authority,Office for National Statistics,19-Feb-20,Exp - Purchase Of Goods/Services - Contractors,Digital Delivery,Parity Resources Limited,174830,544.68, Information Management Services,Large,Programme Expenditure
UK Statistics Authority,Office for National Statistics,19-Feb-20,Exp - Purchase Of Goods/Services - IT Contractual Services,Digital Delivery,Parity Resources Limited,174830,"9,804.24", Information Management Services,Large,Programme Expenditure
UK Statistics Authority,Office for National Statistics,19-Feb-20,Exp - Short-Term Contract & Agency Staff - Full Cost,Interviewer Management TU,Parity Resources Limited,174830,473.04, Information Management Services,Large,Programme Expenditure
UK Statistics Authority,Office for National Statistics,19-Feb-20,Other Goods And Services,Interviewer Management TU,Parity Resources Limited,174830,267.30, Information Management Services,Large,Programme Expenditure
UK Statistics Authority,Office for National Statistics,19-Feb-20,Exp - Short-Term Contract & Agency Staff - Full Cost,Labour Market,Parity Resources Limited,174830,719.72, Information Management Services,Large,Programme Expenditure
UK Statistics Authority,Office for National Statistics,19-Feb-20,Exp - Short-Term Contract & Agency Staff - Full Cost,Labour Market,Parity Resources Limited,174830,719.72, Information Management Services,Large,Programme Expenditure
UK Statistics Authority,Office for National Statistics,19-Feb-20,Exp - Purchase Of Goods/Services - IT Contractual Services,DST Reapportioning,Empiric Solutions Limited,174832,"44,070.00", Information Management Services,Large,Programme Expenditure
UK Statistics Authority,Office for National Statistics,19-Feb-20,"ICT Outsourcing, Maintenance And Support",IT Operations,KCOM Group Plc,174841,"85,528.63", Information Management Services,SME,Programme Expenditure
UK Statistics Authority,Office for National Statistics,19-Feb-20,Other Goods And Services,Data Collection Service,Good Things Foundation,174850,"284,449.87", Information Management Services,SME,Programme Expenditure
UK Statistics Authority,Office for National Statistics,19-Feb-20,Major Works Over 25K,Property Christchurch,Pickfords Move Managment Ltd,174855,"36,262.20", Facility Management Services,Large,Programme Expenditure
UK Statistics Authority,Office for National Statistics,21-Feb-20,Telecoms,IT Operations,Vodafone Corporate Ltd,175295,"42,758.23", Telecommunications,Large,Programme Expenditure
UK Statistics Authority,Office for National Statistics,21-Feb-20,Exp - Purchase Of Goods And Services Consultants,Census CCS Data Collection,HMRC,175312,"117,148.44", Census Information Management Sevices,Large,Programme Expenditure
UK Statistics Authority,Office for National Statistics,21-Feb-20,Exp - Purchase Of Goods/Services - Contractors,Programme Delivery,Certes Computing Ltd,175316,"13,770.24", Information Management Services,SME,Programme Expenditure
UK Statistics Authority,Office for National Statistics,21-Feb-20,Exp - Purchase Of Goods/Services - Contractors,Programme Delivery,Certes Computing Ltd,175316,"12,810.00", Information Management Services,SME,Programme Expenditure
UK Statistics Authority,Office for National Statistics,21-Feb-20,Exp - Purchase Of Goods/Services - Contractors,International Trade And Transactions,Certes Computing Ltd,175316,"16,140.67", Information Management Services,SME,Programme Expenditure
UK Statistics Authority,Office for National Statistics,21-Feb-20,Exp - Purchase Of Goods/Services - Contractors,Commercial Services,Certes Computing Ltd,175316,"10,888.09", Information Management Services,SME,Programme Expenditure
UK Statistics Authority,Office for National Statistics,21-Feb-20,Exp - Purchase Of Goods/Services - Contractors,Digital Delivery,Certes Computing Ltd,175316,"10,567.98", Information Management Services,SME,Programme Expenditure
UK Statistics Authority,Office for National Statistics,21-Feb-20,Surveys,Crime Statistics,Kantar UK Ltd,175324,"35,556.00", Statistical Services,Large,Programme Expenditure
UK Statistics Authority,Office for National Statistics,24-Feb-20,Major Works Over 25K,Census CCS Data Collection,Vinci Construction UK Limited,175756,"29,100.00", Major Works Titchfield,Large,Programme Expenditure
UK Statistics Authority,Office for National Statistics,24-Feb-20,Major Works Over 25K,Property Titchfield,Vinci Construction UK Limited,175756,"27,399.60", Major Works Titchfield,Large,Programme Expenditure
UK Statistics Authority,Office for National Statistics,24-Feb-20,Exp - Purchase Of Goods/Services - Training & Development - Professional Membership Fees,Productivity Research And Professional Development,HMRC,175762,"26,400.00", Fast Stream Recruitment Services,Large,Programme Expenditure
UK Statistics Authority,Office for National Statistics,24-Feb-20,Other Professional Services,Data As A Service,HMRC,175762,"805,200.00", Information Management Services,Large,Programme Expenditure
UK Statistics Authority,Office for National Statistics,24-Feb-20,Exp - Purchase Of Goods/Services - IT Contractual Services,Tech Delivery Next Gen IT And Infrastructure,Cysure Limited,175772,"25,385.10", Information Management Services,SME,Programme Expenditure
UK Statistics Authority,Office for National Statistics,24-Feb-20,Exp - Purchase Of Goods/Services - IT Contractual Services,Tech Delivery Next Gen IT And Infrastructure,Cysure Limited,175772,"15,600.00", Information Management Services,SME,Programme Expenditure
UK Statistics Authority,Office for National Statistics,24-Feb-20,Exp - Purchase Of Goods/Services - Contractor Travel,Tech Delivery Next Gen IT And Infrastructure,Cysure Limited,175772,"1,460.78", Information Management Services,SME,Programme Expenditure
UK Statistics Authority,Office for National Statistics,25-Feb-20,Exp - Purchase Of Goods/Services - IT Contractual Services,DST Reapportioning,QA Ltd,175778,"34,200.00", Information Management Services,Large,Programme Expenditure
UK Statistics Authority,Office for National Statistics,26-Feb-20,IT Management And Change,IT Operations,Crown Hosting Data Centres Limited,175790,"27,337.97", Crown Hosted Data Centre,SME,Programme Expenditure
UK Statistics Authority,Office for National Statistics,26-Feb-20,Travel And Subsistence,CWT Trainline,Corporate Travel Management ,175795,"59,576.02", Corporate Travel Management ,SME,Programme Expenditure
UK Statistics Authority,Office for National Statistics,27-Feb-20,Exp - Purchase Of Goods/Services - Contractors,International Trade And Transactions,Mango Solutions,176233,"16,320.00", Information Management Services,SME,Programme Expenditure
UK Statistics Authority,Office for National Statistics,27-Feb-20,Exp - Purchase Of Goods/Services - Contractors,International Trade And Transactions,Mango Solutions,176233,"55,149.90", Information Management Services,SME,Programme Expenditure
UK Statistics Authority,Office for National Statistics,27-Feb-20,Exp - Purchase Of Goods/Services - IT Contractual Services,Digital Publishing,Swirrl IT Ltd,176234,"73,935.84", Information Management Services,SME,Programme Expenditure
UK Statistics Authority,Office for National Statistics,27-Feb-20,IT Management And Change,IT Operations,Swirrl IT Ltd,176234,"1,920.00", Information Management Services ,SME,Programme Expenditure
UK Statistics Authority,Office for National Statistics,27-Feb-20,Exp - Permanent UK Staff - PRP Voucher Payments,ONS Corporate Funds,Park Retail Ltd,176236,"18,871.40", Performance Reward Vouchers,Large,Programme Expenditure
UK Statistics Authority,Office for National Statistics,27-Feb-20,Exp - Purchase Of Goods/Services - Incentive Payments,Survey Management,Park Retail Ltd,176236,"46,052.05", Survey Incentive Vouchers,Large,Programme Expenditure
UK Statistics Authority,Office for National Statistics,27-Feb-20,Exp - Purchase Of Goods/Services - Incentive Payments,Survey Management,Park Retail Ltd,176236,"8,067.80", Survey Incentive Vouchers,Large,Programme Expenditure
UK Statistics Authority,Office for National Statistics,27-Feb-20,Exp - Purchase Of Goods/Services - Incentive Payments,Survey Management,Park Retail Ltd,176236,"4,641.12", Survey Incentive Vouchers,Large,Programme Expenditure
UK Statistics Authority,Office for National Statistics,27-Feb-20,Exp - Purchase Of Goods/Services - Incentive Payments,Survey Management,Park Retail Ltd,176236,"4,109.11", Survey Incentive Vouchers,Large,Programme Expenditure
UK Statistics Authority,Office for National Statistics,27-Feb-20,Exp - Purchase Of Goods/Services - Incentive Payments,Survey Management,Park Retail Ltd,176236,"2,176.06", Survey Incentive Vouchers,Large,Programme Expenditure
UK Statistics Authority,Office for National Statistics,27-Feb-20,Telecoms,IT Operations,BT Global Services,176237,"26,351.98", Cloud Hosting Services,Large,Programme Expenditure
UK Statistics Authority,Office for National Statistics,27-Feb-20,Exp - Purchase Of Goods/Services - IT Contractual Services,DST Reapportioning,QA Ltd,176244,"64,140.00", Information Management Services,Large,Programme Expenditure
UK Statistics Authority,Office for National Statistics,27-Feb-20,Surveys,Business Change Support,Department For Work And Pensions,176250,"30,000.00", Statistical Services,Large,Programme Expenditure
UK Statistics Authority,Office for National Statistics,27-Feb-20,Software Licences At Cost - Additions,IT Operations,SoftwareOne UK Ltd,176265,"24,441.41", Software Licenses,SME,Programme Expenditure
UK Statistics Authority,Office for National Statistics,27-Feb-20,"ICT Outsourcing, Maintenance And Support",IT Operations,SoftwareOne UK Ltd,176265,"4,729.73", Software Licenses,SME,Programme Expenditure
UK Statistics Authority,Office for National Statistics,04-Feb-20,Accommodation & Building Management,Property Services,Lambert Smith Hampton,30001795,"57,600.00", Estate Agency Fees,Large,Programme Expenditure
UK Statistics Authority,Office for National Statistics,04-Feb-20,Surveys,Census & Soc Methodology DD,University Of Southampton,30001796,"38,779.00", Statistical Services,SME,Programme Expenditure
UK Statistics Authority,Office for National Statistics,13-Feb-20,"ICT Outsourcing, Maintenance And Support",IT Operations,Pluralsight,30001805,"99,486.07", Software Licenses,Large,Programme Expenditure
UK Statistics Authority,Office for National Statistics,21-Feb-20,Electricity,Property Newport,EDF Energy,30001826,"34,713.47", Electricity Charges Newport,Large,Programme Expenditure
UK Statistics Authority,Office for National Statistics,21-Feb-20,Electricity,Property Titchfield,EDF Energy,30001826,"29,013.24", Electricity Charges Titchfield,Large,Programme Expenditure
